bitfinex-derivatives/quotes_SOLF0:USTF0_20250114
["timestamp","ask_amount","ask_price","bid_price","bid_amount"]
[1736863614200,6.36,187.91,187.79,12.2492168]
[1736863614401,6.36,187.91,187.88,2.6624]
[1736863614905,6.36,187.91,187.86,2.6626]
[1736863615301,6.36,187.91,187.79,12.2492168]
[1736863615502,6.36,187.91,187.84,2.6629]
[1736863615803,191.0,187.96,187.82,12.2492168]
[1736863616002,12.2492168,187.97,187.85,12.2492168]
[1736863616203,12.2492168,187.97,187.92,2.6617]
[1736863616910,18.6092168,188.0,187.88,12.2492168]
[1736863617207,12.2492168,188.03,187.9,12.2492168]
[1736863617401,12.2492168,188.03,187.93,12.2492168]
[1736863617808,12.2492168,188.06,187.93,12.2492168]
[1736863618009,18.6092168,188.06,187.96,2.6612]
[1736863618209,18.6092168,188.06,187.97,1.6351]
[1736863618607,12.2492168,188.09,187.97,1.6351]
[1736863618910,12.2492168,188.09,187.99,12.2492168]
[1736863619109,12.2492168,188.09,188.04,2.6601]
[1736863619305,6.36,188.11,188.04,2.6601]
[1736863619306,25.91947091,188.11,188.04,2.6601]
[1736863620103,25.91947091,188.11,188.0,1.6564]
[1736863620409,6.36,188.16,188.02,19.55947091]
[1736863620609,19.55947091,188.17,188.02,19.55947091]
[1736863620803,25.91947091,188.17,188.09,2.6594]
[1736863621210,19.55947091,188.17,188.02,19.55947091]
[1736863621403,6.36,188.18,188.02,19.55947091]
[1736863621601,22.21737091,188.2,188.11,2.6591]
[1736863621809,6.36,188.19,188.05,19.55947091]
[1736863622806,191.0,188.23,188.05,19.55947091]
[1736863623011,191.0,188.23,188.08,19.55947091]
[1736863623207,22.21677091,188.25,188.17,2.6583]
[1736863623411,9.0173,188.25,188.17,2.6583]
[1736863623612,28.57677091,188.25,188.11,19.55947091]
[1736863623903,25.91947091,188.25,188.11,19.55947091]
[1736863624809,19.55947091,188.22,188.13,2.6588]
[1736863625211,2.6582,188.18,188.1,2.6592]
[1736863625511,19.55947091,188.19,188.1,2.6592]
[1736863626210,2.6582,188.18,188.1,2.6592]
[1736863626606,19.55947091,188.19,188.09,4.9425]
[1736863626807,191.0,188.24,188.11,19.55947091]
[1736863627504,6.911,188.27,188.18,2.6581]
[1736863627505,2.6571,188.26,188.18,2.6581]
[1736863627706,19.55947091,188.31,188.14,19.55947091]
[1736863627906,25.91947091,188.31,188.17,19.55947091]
[1736863628102,25.91947091,188.31,188.22,2.6575]
[1736863628103,7.27500185,188.3,188.22,2.6575]
[1736863628306,19.55947091,188.31,188.22,2.6575]
[1736863628510,25.91947091,188.31,188.22,2.6575]
[1736863628908,25.91947091,188.31,188.2,2.6578]
[1736863629614,2.6569,188.28,188.2,2.6578]
[1736863630711,2.657,188.27,188.19,1.546]
[1736863630913,19.55947091,188.25,188.18,1.5738]
[1736863631217,25.91947091,188.31,188.18,1.5738]
[1736863632310,9.0164,188.31,188.18,1.5738]
[1736863633006,25.91947091,188.31,188.18,1.5738]
[1736863633615,2.6565,188.3,188.18,1.5738]
[1736863633816,25.91947091,188.31,188.18,1.5738]
[1736863635114,28.57587091,188.31,188.22,2.6575]
[1736863635309,19.55947091,188.31,188.18,1.5738]
[1736863635516,25.89947091,188.34,188.19,19.55947091]
[1736863636512,2.6563,188.32,188.24,2.6572]
[1736863636914,19.55947091,188.31,188.18,1.5738]
[1736863637113,2.6565,188.3,188.18,1.5738]
[1736863638213,2.6565,188.3,188.22,2.6575]
[1736863638610,19.55947091,188.31,188.16,19.55947091]
[1736863638819,2.6568,188.28,188.2,2.6578]
[1736863639121,19.55947091,188.31,188.17,1.5502]
[1736863639416,18.53627739,188.32,188.24,2.6572]
[1736863639615,18.53627739,188.32,188.21,12.19627739]
[1736863639819,18.53627739,188.32,188.23,2.6574]
[1736863640417,12.19627739,188.29,188.18,12.19627739]
[1736863640617,12.19627739,188.29,188.17,1.5502]
[1736863640618,12.19627739,188.26,188.17,1.5502]
[1736863641115,12.19627739,188.23,188.12,79.64000321]
[1736863641315,6.34,188.24,188.13,1.5989]
[1736863641520,12.19627739,188.17,188.04,12.19627739]
[1736863641721,12.19627739,188.14,188.03,1.5989]
[1736863642520,12.19627739,188.14,188.06,2.6598]
[1736863642722,12.19627739,188.14,188.03,1.5989]
[1736863642919,6.34,188.16,188.0,3.3134]
[1736863643125,12.19627739,188.08,188.02,2.6603]
[1736863643423,19.5603208,188.12,188.0,1.6368]
[1736863643817,22.2194208,188.12,188.02,2.6603]
[1736863644017,19.5603208,188.12,187.96,21.1068208]
[1736863644217,19.5603208,188.09,187.96,21.1068208]
[1736863644418,6.34,188.08,187.96,19.5603208]
[1736863644625,6.34,188.08,187.96,21.1068208]
[1736863645227,8.9997,188.08,188.0,2.6606]
[1736863645729,6.34,188.07,187.98,2.6609]
[1736863647231,2.66,188.06,187.98,2.6609]
[1736863647725,19.5603208,188.06,187.96,2.6613]
[1736863647929,19.5603208,188.03,187.89,3.1554]
[1736863648331,19.5603208,188.0,187.89,1.5589]
[1736863648526,6.34,187.99,187.86,1.6493]
[1736863648727,6.892,187.99,187.86,1.6493]
[1736863649128,9.553,187.99,187.86,1.6493]
[1736863649330,9.553,187.99,187.84,1.5589]
[1736863649530,19.5603208,187.97,187.84,1.5589]
[1736863649735,22.2215208,187.97,187.88,2.6624]
[1736863649933,19.5603208,187.97,187.84,1.5589]
[1736863651425,19.5603208,187.97,187.9,2.6621]
[1736863651627,6.34,187.99,187.84,1.5589]
[1736863651826,6.34,188.02,187.88,19.5603208]
[1736863652028,6.34,188.02,187.92,2.6617]
[1736863652637,6.34,188.02,187.89,1.696]
[1736863652845,9.0006,188.02,187.93,2.6617]
[1736863653338,9.0006,188.02,187.89,1.696]
[1736863653339,6.34,188.02,187.89,1.696]
[1736863653538,22.2211208,188.0,187.91,2.662]
[1736863653836,22.2211208,188.0,187.89,1.696]
[1736863654037,9.0005,188.02,187.94,2.6615]
[1736863654537,9.0005,188.02,187.92,2.6617]
[1736863654538,2.6606,188.01,187.92,2.6617]
[1736863654739,2.6606,188.01,187.89,1.696]
[1736863655835,22.2211208,188.0,187.91,2.6619]
[1736863656033,19.5603208,188.0,187.91,2.6619]
[1736863657133,6.34,188.02,187.88,2.6623]
[1736863657134,19.5603208,187.97,187.88,2.6623]
[1736863658137,19.5603208,187.94,187.83,64.4272599]
[1736863658338,19.5603208,187.91,187.83,64.4272599]
[1736863658538,6.34,187.9,187.83,64.4272599]
[1736863658842,6.34,187.9,187.83,67.0903599]
[1736863659041,6.34,187.9,187.83,64.4272599]
[1736863660242,6.34,187.9,187.86,2.6626]
[1736863660643,6.34,187.9,187.83,64.4272599]
[1736863661744,6.34,187.9,187.85,2.6627]
[1736863662135,6.34,187.9,187.83,64.4272599]
[1736863662341,6.34,187.9,187.85,2.6627]
[1736863662544,6.34,187.9,187.83,64.4272599]
[1736863663039,6.34,187.9,187.85,2.6628]
[1736863664253,2.6614,187.96,187.83,64.4272599]
[1736863664545,6.34,187.97,187.84,1.6811]
[1736863664747,6.34,187.97,187.84,3.3599]
[1736863665446,6.8938,187.98,187.84,3.3599]
[1736863666143,6.8938,187.98,187.9,2.662]
[1736863667549,6.8938,187.98,187.84,3.3599]
[1736863667742,6.8938,187.98,187.85,19.5603208]
[1736863668250,6.8938,187.98,187.9,2.662]
[1736863668447,6.8938,187.98,187.85,19.5603208]
[1736863669146,6.8938,187.98,187.84,3.3599]
[1736863669352,12.24643007,187.93,187.84,3.3599]
[1736863669845,12.24643007,187.93,187.87,2.6625]
[1736863670041,12.24643007,187.96,187.84,3.3599]
[1736863671148,12.24643007,187.96,187.89,2.6623]
[1736863671450,12.24643007,187.93,187.84,3.3599]
[1736863671650,12.24643007,187.9,187.84,1.6811]
[1736863672044,12.24643007,187.9,187.83,64.4272599]
[1736863672245,12.24643007,187.87,187.83,64.4272599]
[1736863673252,12.24643007,187.87,187.79,4.22]
[1736863673450,19.60930476,187.88,187.79,1.5564]
[1736863676051,19.60930476,187.88,187.81,2.6633]
[1736863678457,9.0024,187.89,187.79,1.5564]
[1736863678458,6.34,187.89,187.79,1.5564]
[1736863678652,6.34,187.91,187.79,21.16570476]
[1736863679359,6.34,187.91,187.82,2.6632]
[1736863679558,6.34,187.91,187.79,21.16570476]
[1736863680762,6.34,187.91,187.79,1.5564]
[1736863681162,9.0021,187.91,187.83,2.663]
[1736863681662,6.34,187.93,187.79,1.5564]
[1736863681863,6.34,187.93,187.87,2.6625]
[1736863682258,6.34,187.93,187.79,1.5564]
[1736863682459,6.34,187.93,187.83,2.6631]
[1736863683266,6.34,187.93,187.79,1.5564]
[1736863683466,6.34,187.93,187.81,19.60930476]
[1736863683665,19.60930476,187.94,187.81,19.60930476]
[1736863683864,25.94930476,187.94,187.81,19.60930476]
[1736863684060,19.60930476,187.94,187.81,19.60930476]
[1736863684255,6.34,187.95,187.81,19.60930476]
[1736863684761,19.60930476,187.94,187.8,7.08589151]
[1736863685164,19.60930476,187.94,187.8,28.34356604]
[1736863685366,2.662,187.92,187.84,2.6629]
[1736863685864,22.27100476,187.94,187.85,2.6627]
[1736863686063,19.60930476,187.94,187.79,21.16570476]
[1736863686463,2.6619,187.92,187.84,2.6629]
[1736863687062,22.27140476,187.91,187.82,2.6632]
[1736863687267,19.60930476,187.88,187.79,1.5564]
[1736863687460,19.60930476,187.84,187.78,1.6958]
[1736863687666,25.94930476,187.84,187.76,28.34356604]
[1736863688268,25.94930476,187.84,187.78,2.6637]
[1736863688765,22.27190476,187.87,187.75,1.5803]
[1736863688964,6.34,187.87,187.75,1.5803]
[1736863689264,6.34,187.87,187.77,19.60930476]
[1736863689668,191.0,187.91,187.77,19.60930476]
[1736863689669,6.34,187.9,187.77,19.60930476]
[1736863689865,6.34,187.9,187.8,19.60930476]
[1736863690063,6.34,187.9,187.86,2.6626]
[1736863690264,20.16310476,187.98,187.83,19.60930476]
[1736863690464,6.34,187.97,187.84,3.2946]
[1736863690765,6.34,187.97,187.86,19.60930476]
[1736863691369,6.34,187.97,187.84,3.2946]
[1736863691762,19.60930476,187.92,187.84,1.6462]
[1736863691965,2.6621,187.91,187.84,1.6462]
[1736863692970,19.60930476,187.92,187.85,2.6628]
[1736863693371,19.60930476,187.95,187.88,2.6624]
[1736863693570,191.0,187.96,187.88,2.6624]
[1736863693769,191.0,187.96,187.84,1.6462]
[1736863693967,6.34,187.98,187.91,2.6619]
[1736863695163,25.94930476,187.98,187.87,1.6667]
[1736863695369,19.60930476,187.95,187.84,1.6462]
[1736863695768,6.34,187.98,187.85,2.6627]
[1736863695769,22.27120476,187.92,187.85,2.6627]
[1736863695963,19.60930476,187.92,187.84,1.6462]
[1736863696270,19.60930476,187.92,187.84,4.3091]
[1736863696774,19.60930476,187.92,187.86,2.6626]
[1736863696968,19.60930476,187.95,187.84,1.6462]
[1736863697369,19.60930476,187.95,187.88,2.6623]
[1736863697568,19.60930476,187.95,187.84,1.6462]
[1736863699272,2.6617,187.94,187.86,2.6626]
[1736863699476,19.60930476,187.95,187.84,1.6462]
[1736863699676,19.60930476,187.95,187.85,2.6627]
[1736863701167,2.6618,187.93,187.85,2.6627]
[1736863701475,19.60930476,187.95,187.88,2.6623]
[1736863701984,25.94930476,187.98,187.84,1.6462]
[1736863702274,25.94930476,187.98,187.9,2.662]
[1736863702465,28.61040476,187.98,187.9,2.662]
[1736863703577,19.60930476,187.92,187.84,1.6462]
[1736863703876,19.60930476,187.92,187.82,1.6667]
[1736863704274,2.6621,187.91,187.83,2.663]
[1736863704474,19.60930476,187.89,187.81,1.5666]
[1736863704674,6.34,187.88,187.81,1.5666]
[1736863704874,6.34,187.88,187.82,2.6631]
[1736863707381,6.34,187.88,187.84,2.663]
[1736863707780,6.34,187.88,187.86,2.6627]
[1736863707987,19.60930476,187.95,187.81,1.5666]
[1736863708183,6.34,187.94,187.81,1.5666]
[1736863709087,6.34,187.94,187.86,2.6626]
[1736863709686,19.60930476,187.92,187.84,2.6629]
[1736863709888,19.60930476,187.92,187.81,1.5666]
[1736863709889,6.34,187.94,187.81,1.5666]
[1736863710082,191.0,187.97,187.82,19.60930476]
[1736863710287,6.34,187.96,187.82,19.60930476]
[1736863710789,19.60930476,187.95,187.82,19.60930476]
[1736863711382,19.60930476,187.95,187.81,1.5666]
[1736863712286,19.60930476,187.92,187.81,1.5666]
[1736863712787,22.27120476,187.92,187.82,2.6632]
[1736863713487,22.27120476,187.92,187.83,2.663]
[1736863713989,6.34,187.96,187.81,1.5666]
[1736863713990,19.60930476,187.95,187.81,1.5666]
[1736863714486,19.60930476,187.95,187.85,2.6628]
[1736863714694,19.60930476,187.95,187.81,1.5666]
[1736863715989,19.60930476,187.92,187.81,1.5666]
[1736863716188,2.6622,187.9,187.81,1.5666]
[1736863716379,19.60930476,187.89,187.81,1.5666]
[1736863716889,19.60930476,187.89,187.81,2.6633]
[1736863716890,6.34,187.88,187.81,2.6633]
[1736863717296,6.34,187.88,187.8,1.5556]
[1736863718393,6.34,187.88,187.81,2.6633]
[1736863718589,6.34,187.88,187.8,1.5556]
[1736863718890,6.34,187.88,187.8,4.219]
[1736863720192,6.34,187.88,187.8,1.5556]
[1736863720892,2.6618,187.93,187.84,2.6629]
[1736863721090,6.34,187.92,187.84,2.6629]
[1736863721388,2.6618,187.93,187.85,2.6628]
[1736863721589,6.34,187.92,187.85,2.6628]
[1736863723794,28.61130476,187.92,187.83,2.663]
[1736863725694,2.6621,187.91,187.83,2.663]
[1736863726192,25.94930476,187.92,187.84,2.6629]
[1736863728088,25.94930476,187.92,187.85,2.6627]
[1736863728397,25.94930476,187.92,187.8,1.5556]
[1736863730599,6.34,187.92,187.87,2.6626]
[1736863730797,0.5556,187.94,187.8,1.5556]
[1736863730997,191.0,187.97,187.92,2.6618]
[1736863731193,6.34,187.98,187.92,2.6618]
[1736863731996,2.6614,187.96,187.86,1.5614]
[1736863732196,19.60930476,187.92,187.81,1.6179]
[1736863732699,2.6622,187.9,187.82,2.6632]
[1736863732889,6.34,187.89,187.82,2.6632]
[1736863733097,25.94930476,187.89,187.8,4.2191]
[1736863733392,28.61170476,187.89,187.8,2.6635]
[1736863733799,28.61170476,187.89,187.82,2.6633]
[1736863734300,25.94930476,187.89,187.82,2.6633]
[1736863734501,6.34,187.89,187.83,2.663]
[1736863735998,6.34,187.89,187.85,2.6628]
[1736863736194,6.34,187.89,187.79,1.539]
[1736863736392,2.6625,187.88,187.79,2.6636]
[1736863737088,2.6625,187.88,187.8,2.6634]
[1736863737494,25.94930476,187.89,187.76,1.6179]
[1736863737991,6.34,187.89,187.76,21.22720476]
[1736863738300,6.34,187.89,187.85,2.6627]
[1736863738901,6.32,187.91,187.85,2.6627]
[1736863739095,2.6617,187.94,187.85,2.6627]
[1736863739295,6.32,187.93,187.85,2.6627]
[1736863739503,8.9818,187.93,187.85,2.6627]
[1736863740403,22.27130476,187.92,187.83,2.6631]
[1736863740604,19.60930476,187.92,187.83,2.6631]
[1736863740805,19.60930476,187.92,187.76,21.22720476]
[1736863741201,19.60930476,187.89,187.76,1.6179]
[1736863741707,2.6628,187.86,187.78,2.6637]
[1736863742003,6.32,187.85,187.78,2.6637]
[1736863742598,6.32,187.85,187.76,1.6179]
[1736863742802,6.32,187.85,187.74,3.2242]
[1736863743200,8.9829,187.85,187.76,2.664]
[1736863743401,19.60930476,187.83,187.74,1.6768]
[1736863743997,2.6634,187.81,187.73,2.6645]
[1736863744603,22.27250476,187.83,187.74,2.6643]
[1736863744804,19.60930476,187.83,187.74,2.6643]
[1736863745205,19.60930476,187.83,187.7,1.556]
[1736863745405,2.6635,187.81,187.72,2.6646]
[1736863746006,2.6635,187.81,187.73,2.6645]
[1736863748106,19.60930476,187.83,187.7,1.556]
[1736863748310,22.27250476,187.83,187.74,2.6643]
[1736863749306,19.60930476,187.83,187.72,2.6647]
[1736863751218,2.6636,187.8,187.72,2.6647]
[1736863752512,2.6634,187.82,187.75,2.6642]
[1736863752813,2.6634,187.82,187.7,1.556]
[1736863753010,19.60930476,187.83,187.7,1.556]
[1736863754116,2.6635,187.81,187.73,2.6645]
[1736863755219,22.27250476,187.83,187.74,2.6643]
[1736863755723,19.60930476,187.83,187.7,1.556]
[1736863756313,19.60930476,187.83,187.73,2.6644]
[1736863756517,19.60930476,187.83,187.7,1.556]
[1736863758019,6.32,187.82,187.75,2.6642]
[1736863758219,6.32,187.81,187.75,2.6642]
[1736863758613,6.32,187.81,187.73,2.6645]
[1736863759420,19.60930476,187.8,187.71,2.6647]
[1736863760217,2.6638,187.79,187.71,2.6647]
[1736863763420,14.92833308,187.79,187.71,2.6647]
[1736863765214,12.26453308,187.76,187.69,4.2651]
[1736863770921,12.26453308,187.7,187.62,7.08589151]
[1736863771928,12.26453308,187.7,187.64,2.6657]
[1736863774823,8.9847,187.72,187.58,64.52024206]
[1736863774824,12.26453308,187.67,187.58,64.52024206]
[1736863775031,12.26453308,187.7,187.58,76.78477514]
[1736863775229,6.32,187.72,187.65,12.26453308]
[1736863775428,6.32,187.72,187.69,2.665]
[1736863776033,6.32,187.75,187.69,2.665]
[1736863776626,12.26453308,187.73,187.66,1.6546]
[1736863776834,12.26453308,187.7,187.58,76.78477514]
[1736863777333,12.26453308,187.67,187.62,2.666]
[1736863777734,12.26453308,187.67,187.58,64.52024206]
[1736863777932,12.26453308,187.67,187.6,2.6663]
[1736863778133,12.26453308,187.67,187.58,64.52024206]
[1736863778532,12.26453308,187.7,187.63,2.6659]
[1736863778726,12.26453308,187.73,187.61,12.26453308]
[1736863779132,12.26453308,187.73,187.64,12.26453308]
[1736863779330,12.26453308,187.73,187.62,2.666]
[1736863779529,12.26453308,187.73,187.61,12.26453308]
[1736863779727,12.26453308,187.7,187.58,76.78477514]
[1736863780430,12.26453308,187.7,187.66,2.6654]
[1736863781035,12.26453308,187.7,187.58,76.78477514]
[1736863782739,12.26453308,187.67,187.62,2.666]
[1736863783039,12.26453308,187.67,187.58,64.52024206]
[1736863783251,18.58453308,187.67,187.58,64.52024206]
[1736863783947,18.58453308,187.67,187.6,2.6663]
[1736863784139,18.58453308,187.67,187.58,64.52024206]
[1736863785245,18.58453308,187.67,187.61,2.6661]
[1736863786448,18.58453308,187.67,187.64,2.6657]
[1736863788449,12.26453308,187.7,187.66,2.6654]
[1736863790446,12.26453308,187.7,187.67,2.6653]
[1736863792651,12.26453308,187.7,187.65,2.6656]
[1736863792856,12.26453308,187.7,187.58,76.78477514]
[1736863793353,12.26453308,187.7,187.61,2.6662]
[1736863793650,12.26453308,187.67,187.61,2.6662]
[1736863793849,12.26453308,187.67,187.62,2.666]
[1736863794049,12.26453308,187.67,187.58,64.52024206]
[1736863795247,12.26453308,187.7,187.58,76.78477514]
[1736863795851,12.26453308,187.7,187.61,2.6662]
[1736863796052,12.26453308,187.67,187.58,76.78477514]
[1736863797252,12.26453308,187.67,187.58,64.52024206]
[1736863798057,12.26453308,187.64,187.58,64.52024206]
[1736863798357,6.32,187.63,187.58,64.52024206]
[1736863799050,6.32,187.63,187.58,67.18684206]
[1736863799646,6.32,187.63,187.58,2.6666]
[1736863800756,6.32,187.63,187.59,2.6664]
[1736863801154,6.32,187.63,187.57,3.341]
[1736863801560,2.6652,187.69,187.58,12.26453308]
[1736863801561,12.26453308,187.68,187.58,12.26453308]
[1736863801757,6.32,187.69,187.66,2.6654]
[1736863802356,6.32,187.69,187.67,2.6653]
[1736863802655,12.26453308,187.71,187.67,2.6653]
[1736863803054,12.26453308,187.71,187.61,12.26453308]
[1736863803262,12.26453308,187.71,187.65,2.6656]
[1736863804248,6.32,187.7,187.65,2.6656]
[1736863805059,12.26453308,187.68,187.63,2.6659]
[1736863805358,12.26453308,187.68,187.57,3.341]
[1736863805955,12.26453308,187.68,187.62,2.666]
[1736863806156,12.26453308,187.68,187.58,12.26453308]
[1736863806357,6.32,187.7,187.58,12.26453308]
[1736863806552,6.32,187.7,187.61,2.6662]
[1736863806759,6.32,187.7,187.58,12.26453308]
[1736863807458,6.32,187.7,187.65,2.6656]
[1736863808063,12.26453308,187.68,187.63,2.6658]
[1736863808259,12.26453308,187.68,187.57,3.341]
[1736863808564,12.26453308,187.65,187.57,3.341]
[1736863808764,12.26453308,187.65,187.59,2.6664]
[1736863811665,12.26453308,187.65,187.61,2.6662]
[1736863812060,12.26453308,187.65,187.57,3.341]
[1736863812261,12.26453308,187.62,187.57,6.0077]
[1736863812865,12.26453308,187.62,187.57,3.341]
[1736863813060,12.26453308,187.65,187.61,2.6661]
[1736863815068,6.32,187.67,187.57,3.341]
[1736863816366,12.26453308,187.71,187.61,12.26453308]
[1736863816566,12.26453308,187.74,187.61,12.26453308]
[1736863816767,12.26453308,187.74,187.64,12.26453308]
[1736863816968,12.26453308,187.74,187.65,4.8934]
[1736863819173,12.26453308,187.74,187.7,2.6649]
[1736863819373,12.26453308,187.77,187.67,12.26453308]
[1736863819765,12.26453308,187.77,187.65,4.8934]
[1736863819970,191.0,187.81,187.65,4.8934]
[1736863819971,12.26453308,187.74,187.65,4.8934]
[1736863820174,12.26453308,187.74,187.68,2.6652]
[1736863821377,12.26453308,187.71,187.66,2.6654]
[1736863822877,12.26453308,187.71,187.65,3.2436]
[1736863823880,12.26453308,187.71,187.65,5.9092]
[1736863826374,12.26453308,187.68,187.6,64.51727408]
[1736863826677,12.26453308,187.65,187.6,64.51727408]
[1736863827372,6.3,187.68,187.6,64.51727408]
[1736863827573,6.3,187.68,187.63,2.666]
[1736863828778,6.3,187.68,187.6,64.51727408]
[1736863828976,6.3,187.68,187.65,2.6656]
[1736863831075,6.3,187.68,187.63,2.6658]
[1736863831378,6.3,187.68,187.6,64.51727408]
[1736863831677,18.56453308,187.68,187.6,64.51727408]
[1736863831879,12.26453308,187.65,187.6,64.51727408]
[1736863832275,12.26453308,187.65,187.6,67.18357408]
[1736863832471,12.26453308,187.65,187.58,3.1792]
[1736863833982,18.56453308,187.68,187.58,3.1792]
[1736863834783,6.3,187.68,187.58,3.1792]
[1736863835983,6.3,187.68,187.64,2.6658]
[1736863838275,6.3,187.68,187.58,3.1792]
[1736863838482,6.3,187.72,187.66,2.6654]
[1736863841086,12.26453308,187.69,187.64,2.6658]
[1736863841280,12.26453308,187.69,187.58,3.1792]
[1736863842182,12.26453308,187.6,187.54,28.34356604]
[1736863842387,12.26453308,187.6,187.52,10.27009151]
[1736863842682,12.26453308,187.57,187.52,10.27009151]
[1736863843386,12.26453308,187.57,187.52,3.1842]
[1736863844085,12.26453308,187.57,187.52,5.8516]
[1736863844289,12.26453308,187.57,187.45,12.26453308]
[1736863844586,12.26453308,187.57,187.46,3.141]
[1736863845286,12.26453308,187.57,187.5,2.6677]
[1736863845685,12.26453308,187.57,187.51,2.6676]
[1736863848088,12.26453308,187.54,187.46,3.141]
[1736863848483,12.26453308,187.51,187.38,21.25767453]
[1736863848686,12.26453308,187.51,187.4,4.917]
[1736863849989,12.26453308,187.51,187.45,2.6684]
[1736863851187,12.26453308,187.51,187.4,4.917]
[1736863852185,12.26453308,187.48,187.4,3.3176]
[1736863853582,12.26453308,187.51,187.4,3.3176]
[1736863853784,12.26453308,187.51,187.43,2.6688]
[1736863853987,12.26453308,187.51,187.4,3.3176]
[1736863854390,12.26453308,187.51,187.43,2.6688]
[1736863854591,12.26453308,187.51,187.4,5.0221]
[1736863855694,12.26453308,187.51,187.45,2.6684]
[1736863855889,12.26453308,187.51,187.4,5.0221]
[1736863856292,12.26453308,187.51,187.46,2.6683]
[1736863856992,203.26453308,187.54,187.47,2.6682]
[1736863857190,209.56453308,187.54,187.42,12.26453308]
[1736863857898,2.6669,187.57,187.5,2.6677]
[1736863857899,6.3,187.56,187.5,2.6677]
[1736863859795,6.3,187.56,187.52,2.6674]
[1736863860095,6.3,187.56,187.45,12.26453308]
[1736863860299,12.26453308,187.54,187.42,12.26453308]
[1736863861702,12.26453308,187.51,187.45,2.6684]
[1736863861997,12.26453308,187.51,187.4,5.0221]
[1736863862200,12.26453308,187.54,187.41,12.26453308]
[1736863862398,12.26453308,187.54,187.48,2.668]
[1736863862697,12.26453308,187.54,187.41,12.26453308]
[1736863862899,12.26453308,187.54,187.44,12.26453308]
[1736863863898,12.26453308,187.54,187.47,2.6682]
[1736863864098,12.26453308,187.54,187.44,12.26453308]
[1736863864499,12.26453308,187.57,187.52,2.6674]
[1736863865499,12.26453308,187.57,187.5,2.6677]
[1736863867496,12.26453308,187.54,187.48,2.668]
[1736863867899,12.26453308,187.54,187.41,12.26453308]
[1736863868094,12.26453308,187.54,187.51,2.6677]
[1736863868595,8.9667,187.59,187.51,2.6677]
[1736863868901,12.26453308,187.56,187.51,2.6677]
[1736863869699,12.26453308,187.56,187.52,2.6674]
[1736863870496,12.26453308,187.56,187.44,12.26453308]
[1736863871102,12.26453308,187.53,187.41,12.26453308]
[1736863872904,12.26453308,187.5,187.44,2.6686]
[1736863874004,12.26453308,187.5,187.45,2.6684]
[1736863876299,12.26453308,187.5,187.47,2.6681]
[1736863876801,6.3,187.51,187.47,2.6681]
[1736863877106,6.3,187.51,187.48,2.668]
[1736863877304,12.26453308,187.53,187.41,12.26453308]
[1736863877503,12.26453308,187.56,187.44,12.26453308]
[1736863877700,12.26453308,187.56,187.47,2.6682]
[1736863878003,12.26453308,187.56,187.44,12.26453308]
[1736863879202,12.26453308,187.56,187.5,2.6677]
[1736863879402,12.26453308,187.56,187.44,12.26453308]
[1736863879906,12.26453308,187.59,187.47,12.26453308]
[1736863880105,12.26453308,187.59,187.54,2.6672]
[1736863880808,12.26453308,187.59,187.48,4.9056]
[1736863881012,12.26453308,187.56,187.48,3.2204]
[1736863881206,12.26453308,187.53,187.48,2.668]
[1736863883000,12.26453308,187.53,187.46,2.6683]
[1736863883906,12.26453308,187.53,187.47,2.6681]
[1736863886506,12.26453308,187.53,187.48,2.668]
[1736863886902,12.26453308,187.53,187.45,3.2086]
[1736863887203,12.26453308,187.53,187.46,2.6683]
[1736863887512,6.3,187.52,187.44,2.6686]
[1736863887905,12.26453308,187.5,187.44,2.6686]
[1736863889008,12.26453308,187.5,187.42,2.6689]
[1736863889306,12.26453308,187.47,187.42,2.6689]
[1736863889506,12.26453308,187.47,187.4,3.2547]
[1736863890107,12.26453308,187.44,187.37,30.04386604]
[1736863890406,12.26453308,187.44,187.37,28.34356604]
[1736863891008,12.26453308,187.44,187.34,3.252]
[1736863891211,12.26453308,187.44,187.38,2.6694]